bitfinex-derivatives/quotes_BTCF0:USTF0_20250101
["timestamp","ask_amount","ask_price","bid_price","bid_amount"]
[1735731796147,5.264e-05,93627.0,93626.0,0.001]
[1735731796343,0.36085264,93627.0,93626.0,0.001]
[1735731796947,0.47295631,93627.0,93626.0,0.001]
[1735731797643,0.47295631,93627.0,93614.0,0.3608]
[1735731797845,0.47295631,93627.0,93618.0,0.001]
[1735731798255,0.47295631,93627.0,93614.0,0.3608]
[1735731798451,0.47295631,93627.0,93626.0,0.001]
[1735731799353,0.5,93626.0,93618.0,0.001]
[1735731799854,0.11525952,93625.0,93618.0,0.001]
[1735731801246,0.11525952,93625.0,93614.0,0.3608]
[1735731801853,0.11845891,93626.0,93618.0,0.001]
[1735731802355,0.36085264,93627.0,93618.0,0.001]
[1735731802550,0.11193863,93626.0,93614.0,0.3618]
[1735731804050,0.11193863,93626.0,93614.0,0.3608]
[1735731804262,0.11193863,93626.0,93618.0,0.001]
[1735731804759,0.11193863,93626.0,93614.0,0.3618]
[1735731805359,0.07209367,93624.0,93614.0,0.001]
[1735731805768,0.5,93615.0,93600.0,0.0307]
[1735731806156,0.11673716,93614.0,93600.0,0.0307]
[1735731806549,0.5,93613.0,93600.0,0.0307]
[1735731806753,0.61673716,93614.0,93600.0,0.0307]
[1735731806963,0.5,93614.0,93600.0,0.0307]
[1735731809361,0.53842943,93614.0,93600.0,0.0307]
[1735731812361,0.03842943,93614.0,93600.0,0.0307]
[1735731812569,0.5,93615.0,93600.0,0.0307]
[1735731812952,0.11714591,93614.0,93600.0,0.0307]
[1735731814064,0.00056001,93615.0,93607.0,0.3608]
[1735731814260,0.03921033,93619.0,93607.0,0.3915]
[1735731814462,0.07209367,93630.0,93618.0,0.3608]
[1735731814663,0.07209367,93630.0,93619.0,0.0658]
[1735731815170,0.07209367,93630.0,93626.0,0.3608]
[1735731815471,0.50060001,93633.0,93626.0,0.3608]
[1735731816469,0.03890788,93627.0,93626.0,0.3608]
[1735731817570,0.03890788,93627.0,93626.0,0.3618]
[1735731821674,5.264e-05,93627.0,93626.0,0.3618]
[1735731822472,5.264e-05,93627.0,93626.0,0.3608]
[1735731822666,5.264e-05,93627.0,93626.0,0.3618]
[1735731825574,0.25366877,93640.0,93626.0,0.3618]
[1735731825970,0.11867565,93639.0,93626.0,0.3618]
[1735731827081,0.11867565,93639.0,93627.0,0.053507]
[1735731828086,0.11867565,93639.0,93626.0,0.3618]
[1735731828383,0.11867565,93639.0,93627.0,0.001]
[1735731829178,0.07209367,93637.0,93627.0,0.001]
[1735731829575,0.11719164,93636.0,93627.0,0.001]
[1735731830377,0.61719164,93636.0,93626.0,0.3608]
[1735731830783,0.5,93627.0,93626.0,0.3608]
[1735731831176,0.11652205,93627.0,93626.0,0.3608]
[1735731831785,0.5,93627.0,93626.0,0.3618]
[1735731832090,0.11877955,93627.0,93626.0,0.3618]
[1735731832385,0.5,93635.0,93626.0,0.3618]
[1735731832585,0.61877955,93635.0,93626.0,0.3618]
[1735731832785,0.07209367,93636.0,93626.0,0.3618]
[1735731832978,0.11696147,93634.0,93626.0,0.3618]
[1735731833286,0.11696147,93635.0,93626.0,0.3618]
[1735731833487,0.07209367,93636.0,93626.0,0.3618]
[1735731833693,0.61696147,93635.0,93626.0,0.3618]
[1735731833984,0.11696147,93635.0,93626.0,0.3618]
[1735731834289,0.61696147,93635.0,93626.0,0.3618]
[1735731834677,0.11696147,93635.0,93626.0,0.3618]
[1735731834979,0.5,93635.0,93626.0,0.3618]
[1735731835175,0.5,93628.0,93626.0,0.3618]
[1735731835587,0.0631,93638.0,93626.0,0.3618]
[1735731835884,0.11414213,93637.0,93626.0,0.3618]
[1735731836092,0.5,93629.0,93626.0,0.3618]
[1735731836290,0.5,93627.0,93626.0,0.3618]
[1735731836875,0.5,93628.0,93626.0,0.3618]
[1735731837687,0.5,93627.0,93626.0,0.3618]
[1735731838080,0.5,93628.0,93626.0,0.3608]
[1735731838277,0.5,93628.0,93626.0,0.3618]
[1735731838593,0.0631,93638.0,93626.0,0.3618]
[1735731838594,0.5,93627.0,93626.0,0.3618]
[1735731839089,0.5,93628.0,93626.0,0.3618]
[1735731839486,0.5,93627.0,93626.0,0.3618]
[1735731839882,0.5,93628.0,93626.0,0.3618]
[1735731840186,0.5,93627.0,93626.0,0.3608]
[1735731840393,0.62376545,93627.0,93626.0,0.3618]
[1735731840692,0.0631,93638.0,93626.0,0.3618]
[1735731840693,0.5,93628.0,93626.0,0.3618]
[1735731841085,0.12376545,93627.0,93626.0,0.3618]
[1735731841395,0.11719016,93635.0,93626.0,0.3618]
[1735731841584,0.5,93628.0,93626.0,0.3618]
[1735731841795,0.11719016,93635.0,93626.0,0.3618]
[1735731841985,0.11719016,93627.0,93626.0,0.3618]
[1735731842392,0.11733185,93634.0,93626.0,0.3618]
[1735731842585,0.5,93635.0,93626.0,0.3618]
[1735731842996,0.11733185,93634.0,93626.0,0.3618]
[1735731843407,0.61730203,93635.0,93626.0,0.3618]
[1735731843603,0.07209367,93636.0,93626.0,0.3608]
[1735731843804,0.07209367,93636.0,93615.0,0.3608]
[1735731843805,0.3608,93630.0,93615.0,0.3608]
[1735731844110,0.07209367,93625.0,93615.0,0.3608]
[1735731844308,0.5,93620.0,93615.0,0.3608]
[1735731844498,0.5,93616.0,93615.0,0.3608]
[1735731844690,0.61456624,93619.0,93615.0,0.3608]
[1735731844896,0.11456624,93619.0,93615.0,0.3608]
[1735731845103,0.11456624,93616.0,93615.0,0.30053298]
[1735731845308,0.12121674,93619.0,93615.0,0.30053298]
[1735731845606,0.12121674,93621.0,93615.0,0.30053298]
[1735731846005,0.0613,93622.0,93615.0,0.30053298]
[1735731846208,0.11832377,93621.0,93615.0,0.30053298]
[1735731847806,0.11932377,93621.0,93615.0,0.30053298]
[1735731849810,0.11932377,93621.0,93612.0,0.3608]
[1735731850893,0.11832377,93621.0,93612.0,0.3608]
[1735731852104,0.50064,93622.0,93612.0,0.3608]
[1735731852311,0.3608,93648.0,93621.0,0.3608]
[1735731852509,0.07209367,93650.0,93631.0,0.3608]
[1735731852709,0.03436854,93644.0,93642.0,0.3608]
[1735731853011,0.11774089,93643.0,93642.0,0.3608]
[1735731853398,0.12289831,93645.0,93642.0,0.3608]
[1735731853602,0.03466041,93646.0,93642.0,0.3608]
[1735731853913,0.12289831,93645.0,93642.0,0.3608]
[1735731854302,0.12289831,93645.0,93642.0,0.3618]
[1735731855111,0.3608,93676.0,93644.0,0.3608]
[1735731855311,0.8608,93676.0,93660.0,0.3608]
[1735731855612,0.24968645,93669.0,93660.0,0.3608]
[1735731856202,0.5,93666.0,93660.0,0.3608]
[1735731857304,0.5,93666.0,93660.0,0.3618]
[1735731857612,0.5,93666.0,93660.0,0.3628]
[1735731857914,0.3608,93680.0,93664.0,0.053486]
[1735731857915,0.5,93680.0,93664.0,0.053486]
[1735731858113,0.5,93680.0,93679.0,0.3608]
[1735731858316,0.5,93686.0,93679.0,0.3608]
[1735731858612,0.5,93680.0,93679.0,0.3608]
[1735731859002,0.5,93685.0,93679.0,0.3608]
[1735731860101,0.5,93685.0,93679.0,0.3618]
[1735731860610,0.62124929,93684.0,93679.0,0.3618]
[1735731860816,0.12124929,93684.0,93679.0,0.3618]
[1735731861001,0.3608,93687.0,93679.0,0.001]
[1735731861202,0.5,93684.0,93679.0,0.001]
[1735731861398,0.3608,93687.0,93679.0,0.001]
[1735731861606,0.12290454,93683.0,93679.0,0.001]
[1735731861914,0.12290454,93685.0,93679.0,0.001]
[1735731862208,0.3608,93687.0,93679.0,0.001]
[1735731862209,0.8608,93687.0,93679.0,0.001]
[1735731862515,0.11536498,93684.0,93679.0,0.001]
[1735731862712,0.11536498,93685.0,93679.0,0.001]
[1735731863014,0.11536498,93683.0,93668.0,0.3608]
[1735731863211,0.11376835,93684.0,93679.0,0.001]
[1735731863409,0.11376835,93685.0,93679.0,0.001]
[1735731863609,0.11376835,93685.0,93668.0,0.3608]
[1735731863610,0.8608,93687.0,93668.0,0.3608]
[1735731863811,0.3608,93687.0,93679.0,0.001]
[1735731864118,0.11376835,93685.0,93679.0,0.001]
[1735731864307,0.11376835,93686.0,93679.0,0.001]
[1735731864507,0.8608,93687.0,93679.0,0.001]
[1735731864508,0.3608,93687.0,93679.0,0.001]
[1735731864700,0.61904411,93686.0,93679.0,0.001]
[1735731865115,0.11904411,93686.0,93676.0,0.3608]
[1735731865313,0.5,93686.0,93676.0,0.3608]
[1735731865710,0.3608,93687.0,93676.0,0.3608]
[1735731865918,0.5,93684.0,93679.0,0.001]
[1735731866413,0.5,93684.0,93676.0,0.3618]
[1735731867119,0.5,93684.0,93679.0,0.001]
[1735731867413,0.3608,93687.0,93679.0,0.001]
[1735731867616,0.12300154,93683.0,93679.0,0.001]
[1735731867914,0.12300154,93686.0,93679.0,0.001]
[1735731868112,0.3608,93687.0,93679.0,0.001]
[1735731868308,0.1200454,93686.0,93679.0,0.001]
[1735731869308,0.8608,93687.0,93676.0,0.3618]
[1735731869309,0.3608,93687.0,93676.0,0.3618]
[1735731869504,0.11433355,93686.0,93676.0,0.3618]
[1735731869813,0.5,93679.0,93676.0,0.3618]
[1735731870117,0.5,93677.0,93676.0,0.3608]
[1735731870609,0.5,93677.0,93676.0,0.3618]
[1735731876225,0.5,93683.0,93676.0,0.3618]
[1735731878427,0.3608,93687.0,93676.0,0.3618]
[1735731881130,0.53423717,93688.0,93686.0,0.3608]
[1735731881428,0.20981652,93700.0,93686.0,0.3608]
[1735731881429,0.1,93700.0,93686.0,0.3608]
[1735731881619,0.20981652,93700.0,93697.0,0.3608]
[1735731881820,0.11605814,93699.0,93686.0,0.3608]
[1735731882121,0.5,93689.0,93678.0,0.00160123]
[1735731882426,0.5,93684.0,93678.0,0.00160123]
[1735731882628,0.0626,93683.0,93678.0,0.00160123]
[1735731882827,0.21735073,93683.0,93678.0,0.00160123]
[1735731883822,0.21735073,93683.0,93678.0,0.00260123]
[1735731884321,0.5,93680.0,93678.0,0.00260123]
[1735731884521,0.21735073,93683.0,93678.0,0.00260123]
[1735731884732,0.11301929,93679.0,93678.0,0.00260123]
[1735731884933,0.11301929,93682.0,93678.0,0.00260123]
[1735731885232,0.0937,93683.0,93678.0,0.00260123]
[1735731885431,0.0937,93683.0,93678.0,0.00160123]
[1735731885627,0.12344024,93682.0,93678.0,0.00260123]
[1735731886128,0.62344024,93682.0,93678.0,0.00260123]
[1735731886630,0.12344024,93682.0,93678.0,0.00260123]
[1735731886835,0.62344024,93682.0,93678.0,0.00260123]
[1735731887024,0.12344024,93682.0,93678.0,0.00260123]
[1735731887422,0.62344024,93682.0,93678.0,0.00260123]
[1735731887723,0.12344024,93682.0,93678.0,0.00260123]
[1735731887919,0.62344024,93682.0,93678.0,0.00260123]
[1735731888335,0.12344024,93682.0,93678.0,0.00260123]
[1735731888530,0.62344024,93682.0,93678.0,0.00260123]
[1735731888834,0.12344024,93682.0,93678.0,0.00260123]
[1735731889032,0.62344024,93682.0,93678.0,0.00260123]
[1735731889433,0.12344024,93682.0,93678.0,0.00260123]
[1735731889625,0.62344024,93682.0,93678.0,0.00260123]
[1735731889936,0.12344024,93682.0,93678.0,0.00260123]
[1735731890238,0.62344024,93682.0,93678.0,0.001]
[1735731890724,0.12344024,93682.0,93678.0,0.001]
[1735731890929,0.62344024,93682.0,93678.0,0.001]
[1735731891127,0.12344024,93682.0,93678.0,0.001]
[1735731891532,0.62344024,93682.0,93678.0,0.001]
[1735731891851,0.12344024,93682.0,93678.0,0.001]
[1735731892134,0.62344024,93682.0,93678.0,0.001]
[1735731892429,0.12344024,93682.0,93678.0,0.001]
[1735731892739,0.62344024,93682.0,93678.0,0.001]
[1735731893031,0.12344024,93682.0,93678.0,0.001]
[1735731893233,0.62344024,93682.0,93678.0,0.001]
[1735731893631,0.12344024,93682.0,93678.0,0.001]
[1735731893843,0.62344024,93682.0,93678.0,0.001]
[1735731894221,0.12344024,93682.0,93678.0,0.001]
[1735731894426,0.62344024,93682.0,93678.0,0.001]
[1735731894838,0.12344024,93682.0,93678.0,0.001]
[1735731895021,0.62344024,93682.0,93678.0,0.001]
[1735731895427,0.12344024,93682.0,93678.0,0.001]
[1735731895732,0.62344024,93682.0,93678.0,0.001]
[1735731895930,0.12344024,93682.0,93678.0,0.001]
[1735731896137,0.5,93682.0,93678.0,0.001]
[1735731896638,0.04188184,93683.0,93678.0,0.001]
[1735731896864,0.5,93682.0,93678.0,0.001]
[1735731897233,0.3608,93687.0,93678.0,0.001]
[1735731897438,0.5,93682.0,93678.0,0.001]
[1735731897733,0.4121915,93687.0,93678.0,0.001]
[1735731898237,0.5,93682.0,93678.0,0.001]
[1735731898436,0.4121915,93687.0,93678.0,0.001]
[1735731898828,0.5,93682.0,93673.0,0.3608]
[1735731899035,0.11950973,93686.0,93678.0,0.001]
[1735731899235,0.4121915,93687.0,93678.0,0.001]
[1735731899427,0.5,93682.0,93678.0,0.001]
[1735731899629,0.12337567,93686.0,93678.0,0.001]
[1735731899823,0.9121915,93687.0,93678.0,0.001]
[1735731900032,0.4121915,93687.0,93678.0,0.001]
[1735731900431,0.9121915,93687.0,93678.0,0.001]
[1735731901238,0.5513915,93687.0,93686.0,0.3608]
[1735731902541,0.5513915,93687.0,93686.0,0.3618]
[1735731905741,0.0513915,93687.0,93686.0,0.3618]
[1735731906136,0.60981652,93696.0,93686.0,0.3618]
[1735731906344,0.5,93687.0,93686.0,0.3618]
[1735731906643,0.16287163,93696.0,93686.0,0.3618]
[1735731907038,0.66287163,93696.0,93686.0,0.3618]
[1735731907352,0.55305511,93696.0,93686.0,0.3618]
[1735731907539,0.55305511,93696.0,93687.0,0.0319]
[1735731908942,0.55305511,93696.0,93687.0,0.0329]
[1735731910943,0.1,93700.0,93695.0,0.3608]
[1735731911142,0.20981652,93700.0,93695.0,0.3608]
[1735731911336,0.12074409,93696.0,93695.0,0.3608]
[1735731911539,0.12074409,93699.0,93695.0,0.3608]
[1735731911739,0.20981652,93700.0,93695.0,0.3608]
[1735731912045,0.12074409,93696.0,93695.0,0.3608]
[1735731912242,0.12074409,93699.0,93695.0,0.3608]
[1735731912439,0.11411678,93696.0,93695.0,0.3618]
[1735731912747,0.11411678,93699.0,93695.0,0.3618]
[1735731912934,0.26342512,93700.0,93695.0,0.3618]
[1735731912935,0.5,93696.0,93695.0,0.3618]
[1735731913339,0.11969249,93696.0,93695.0,0.3618]
[1735731913541,0.61969249,93696.0,93695.0,0.3618]
[1735731913745,0.5,93696.0,93695.0,0.3618]
[1735731913956,0.11969249,93696.0,93695.0,0.3618]
[1735731914246,0.5,93696.0,93695.0,0.3618]
[1735731914542,0.11952164,93696.0,93695.0,0.3618]
[1735731914738,0.61952164,93696.0,93695.0,0.3618]
[1735731915148,0.26342512,93700.0,93695.0,0.3618]
[1735731915336,0.5,93696.0,93695.0,0.3618]
[1735731915540,0.61118719,93696.0,93695.0,0.3618]
[1735731915740,0.26342512,93700.0,93695.0,0.3618]
[1735731915944,0.5,93696.0,93695.0,0.3618]
[1735731916151,0.61118719,93696.0,93695.0,0.3618]
[1735731916353,0.5,93696.0,93695.0,0.3618]
[1735731923042,0.1536086,93700.0,93695.0,0.3618]
[1735731923356,0.5,93696.0,93695.0,0.3618]
[1735731923649,0.1536086,93700.0,93695.0,0.3618]
[1735731923856,0.11368124,93696.0,93695.0,0.3618]
[1735731924151,0.5,93696.0,93695.0,0.3618]
[1735731924550,0.11552819,93696.0,93695.0,0.3618]
[1735731924751,0.61552819,93696.0,93695.0,0.3618]
[1735731925050,0.5,93696.0,93695.0,0.3618]
[1735731925355,0.11552819,93696.0,93695.0,0.3618]
[1735731925752,0.5,93696.0,93695.0,0.3618]
[1735731925953,0.1536086,93700.0,93695.0,0.3618]
[1735731926157,0.11560026,93696.0,93695.0,0.3618]
[1735731926353,0.5,93696.0,93695.0,0.3618]
[1735731926554,0.1536086,93700.0,93695.0,0.3618]
[1735731926750,0.11631443,93696.0,93695.0,0.3618]
[1735731926952,0.5,93696.0,93695.0,0.3618]
[1735731927152,0.1536086,93700.0,93695.0,0.3618]
[1735731927348,0.61438981,93696.0,93695.0,0.3618]
[1735731927549,0.5,93696.0,93695.0,0.3618]
[1735731927749,0.1536086,93700.0,93695.0,0.3618]
[1735731927950,0.61438981,93696.0,93695.0,0.3618]
[1735731928158,0.5,93696.0,93695.0,0.3618]
[1735731928449,0.12039156,93696.0,93695.0,0.3618]
[1735731928654,0.62039156,93696.0,93695.0,0.3618]
[1735731928859,0.12039156,93699.0,93695.0,0.3618]
[1735731929051,0.1536086,93700.0,93695.0,0.3618]
[1735731929052,0.12039156,93696.0,93695.0,0.3618]
[1735731929453,0.1536086,93700.0,93695.0,0.3618]
[1735731929644,0.5,93696.0,93695.0,0.3618]
[1735731930052,0.1536086,93700.0,93695.0,0.3618]
[1735731930856,0.5,93696.0,93695.0,0.3618]
[1735731931055,0.5,93696.0,93695.0,0.3608]
[1735731931253,0.1536086,93700.0,93695.0,0.3618]
[1735731931868,0.6536086,93700.0,93695.0,0.3618]
[1735731932957,0.1,93700.0,93698.0,0.3608]
[1735731933158,0.3608,93728.0,93698.0,0.3608]
[1735731933159,0.05306168,93705.0,93699.0,0.053466]
[1735731933349,0.13169684,93718.0,93704.0,0.3608]
[1735731933552,0.10981652,93720.0,93717.0,0.3608]
[1735731933751,0.5,93725.0,93717.0,0.3608]
[1735731933954,0.5,93724.0,93717.0,0.3608]
[1735731934768,0.11794905,93723.0,93717.0,0.3608]
[1735731935057,0.11794905,93726.0,93717.0,0.3628]
[1735731935362,0.10981652,93727.0,93717.0,0.3628]
[1735731935662,0.61402734,93726.0,93717.0,0.3628]
[1735731936055,0.031,93725.0,93717.0,0.3628]
[1735731936661,0.08388957,93724.0,93717.0,0.3628]
[1735731937760,0.08388957,93724.0,93717.0,0.3618]
[1735731937955,0.08388957,93724.0,93717.0,0.3628]
[1735731938457,0.08388957,93724.0,93717.0,0.3618]
[1735731938655,0.08388957,93724.0,93717.0,0.3628]
[1735731939249,0.031,93725.0,93717.0,0.3628]
[1735731940256,0.10981652,93727.0,93717.0,0.3628]
[1735731940462,0.5,93726.0,93725.0,0.3608]
[1735731940665,0.62182496,93726.0,93725.0,0.3608]
[1735731940865,0.12182496,93726.0,93725.0,0.3608]
[1735731941052,0.4501,93726.0,93725.0,1.8608]
[1735731941254,0.05137885,93735.0,93725.0,0.3608]
[1735731941461,0.5,93739.0,93734.0,0.3608]
[1735731941770,0.5,93736.0,93734.0,0.3608]
[1735731942166,0.063,93735.0,93734.0,0.3608]
[1735731943457,0.5,93725.0,93714.0,0.3608]
[1735731944375,0.5,93720.0,93714.0,0.3608]
[1735731944766,0.5,93720.0,93714.0,0.3618]
[1735731945355,0.5,93733.0,93714.0,0.3618]
[1735731945666,0.5,93734.0,93723.0,0.3608]
[1735731945853,0.5,93734.0,93722.0,0.3608]
[1735731946058,0.05150818,93738.0,93731.0,0.3608]
[1735731946258,0.8608,93739.0,93731.0,0.3608]
[1735731946454,0.3608,93739.0,93731.0,0.3608]
[1735731946663,0.0329,93738.0,93731.0,0.3608]
[1735731946860,0.5,93733.0,93731.0,0.3608]
[1735731947457,0.002,93733.0,93731.0,0.3608]
[1735731947765,0.002,93733.0,93731.0,0.3618]
[1735731948174,0.002,93733.0,93731.0,0.3628]
[1735731948470,0.41288126,93739.0,93731.0,0.3628]
[1735731948964,0.3608,93739.0,93731.0,0.3628]
[1735731950565,0.5,93746.0,93731.0,0.6628]
[1735731950766,0.0331,93756.0,93739.0,0.3608]
[1735731950969,0.04334411,93747.0,93739.0,0.3608]
[1735731951671,0.5,93754.0,93739.0,0.3608]
[1735731951879,0.5,93754.0,93739.0,0.3618]
[1735731952570,0.04356952,93749.0,93739.0,0.3618]
[1735731952767,0.3608,93753.0,93739.0,0.6618]
[1735731952973,0.04328665,93752.0,93740.0,0.0319]
[1735731953163,0.04328665,93752.0,93742.0,0.3608]
[1735731954662,0.04328665,93752.0,93742.0,0.3618]
[1735731955178,0.04328665,93752.0,93743.0,0.0327]
[1735731955373,0.04328665,93752.0,93743.0,0.0642]
[1735731955673,0.5,93762.0,93743.0,0.0642]
[1735731955869,0.5,93771.0,93743.0,0.417641]
[1735731956078,0.0953,93772.0,93754.0,0.053434]
[1735731956270,0.3981105,93764.0,93753.0,0.3608]
[1735731956963,0.0373105,93764.0,93753.0,0.6608]
[1735731957163,0.5,93782.0,93753.0,0.6608]
[1735731957364,0.0381833,93774.0,93765.0,0.3608]
[1735731957663,0.5,93775.0,93765.0,0.3608]
[1735731957867,0.0642,93773.0,93765.0,0.3608]
[1735731958065,0.5,93770.0,93765.0,0.3608]
[1735731958473,0.5642,93773.0,93765.0,0.3608]
[1735731958972,0.5642,93773.0,93753.0,0.3618]
[1735731958973,0.0642,93773.0,93753.0,0.3618]
[1735731959363,0.5,93763.0,93753.0,0.3618]
[1735731959960,0.5,93765.0,93753.0,0.3618]
[1735731960172,0.5,93765.0,93764.0,0.3608]
[1735731960477,0.0642,93773.0,93765.0,0.001]
[1735731960768,0.0642,93773.0,93764.0,0.3608]
[1735731961166,0.10221834,93773.0,93764.0,0.3608]
[1735731961361,0.10221834,93773.0,93764.0,0.3618]
[1735731962678,0.5,93770.0,93764.0,0.3618]
[1735731963177,0.10221834,93773.0,93764.0,0.3618]
[1735731963562,0.11809347,93772.0,93764.0,0.3618]
[1735731963761,0.11809347,93772.0,93764.0,0.001]
[1735731963964,0.60221834,93773.0,93764.0,0.001]
[1735731964169,0.10221834,93773.0,93764.0,0.001]
[1735731964567,0.60221834,93773.0,93764.0,0.001]
[1735731964777,0.10221834,93773.0,93764.0,0.001]
[1735731965376,0.10221834,93773.0,93765.0,0.3608]
[1735731966064,0.07031834,93773.0,93765.0,0.3608]
[1735731966476,0.0323,93773.0,93765.0,0.3608]
[1735731967170,0.0323,93773.0,93764.0,0.001]
[1735731967573,0.5,93770.0,93765.0,0.001]
[1735731968184,0.5,93770.0,93763.0,0.3608]
[1735731968874,0.14711652,93773.0,93763.0,0.3608]
[1735731970078,0.14211652,93773.0,93763.0,0.3608]
[1735731970279,0.007,93770.0,93765.0,0.001]
[1735731970668,0.0323,93773.0,93763.0,0.3608]
[1735731970975,0.5,93770.0,93763.0,0.3618]
[1735731971184,0.5,93764.0,93763.0,0.3618]
[1735731971577,0.14911652,93773.0,93763.0,0.3618]
[1735731971779,0.64911652,93773.0,93763.0,0.001]
[1735731971974,0.007,93770.0,93753.0,0.3608]
[1735731972174,0.10981652,93763.0,93753.0,0.3608]
[1735731972381,0.5,93760.0,93753.0,0.3608]
[1735731972781,0.5,93759.0,93753.0,0.3608]
[1735731972978,0.031,93758.0,93753.0,0.3608]
[1735731974186,0.037,93758.0,93753.0,0.3608]
[1735731974884,0.07462342,93758.0,93753.0,0.3608]
[1735731975088,0.037,93758.0,93753.0,0.3608]
[1735731975493,0.006,93758.0,93753.0,0.3608]
[1735731976783,0.04328048,93758.0,93753.0,0.3608]
[1735731976988,0.006,93758.0,93753.0,0.3608]
[1735731980782,0.006,93758.0,93753.0,1.8608]
[1735731981596,0.006,93758.0,93753.0,0.3608]
[1735731981979,0.006,93758.0,93753.0,0.6608]
[1735731982180,0.006,93758.0,93754.0,1.5]
[1735731982381,0.006,93758.0,93757.0,0.414233]
[1735731982783,0.006,93758.0,93757.0,0.714233]
[1735731983315,0.0301,93779.0,93767.0,0.053427]
[1735731983476,0.0301,93779.0,93778.0,0.3608]
[1735731984081,0.5,93786.0,93778.0,0.3608]
[1735731984279,0.5,93787.0,93778.0,0.3608]
[1735731984890,0.07742467,93785.0,93778.0,0.3608]
[1735731985093,0.06042467,93785.0,93778.0,0.3608]
[1735731986290,0.008,93779.0,93778.0,0.3618]
[1735731986679,0.008,93779.0,93778.0,0.3608]
[1735731986893,0.03146848,93785.0,93778.0,0.3618]
[1735731987485,0.008,93779.0,93778.0,0.3618]
[1735731988180,0.008,93779.0,93778.0,0.415221]
[1735731988383,0.008,93779.0,93778.0,0.3618]
[1735731988596,0.03146848,93785.0,93778.0,0.3618]
[1735731990087,0.008,93779.0,93778.0,0.3618]
[1735731990588,0.02346848,93785.0,93778.0,0.3608]
[1735731990788,0.02346848,93785.0,93778.0,0.3618]
[1735731990789,0.03146848,93785.0,93778.0,0.3618]
[1735731991300,0.008,93779.0,93778.0,0.3618]
[1735731991788,0.02346848,93785.0,93778.0,0.3608]
[1735731991994,0.03146848,93785.0,93778.0,0.3618]
[1735731993986,0.008,93779.0,93778.0,0.3618]
[1735731994584,0.03146848,93785.0,93778.0,0.3618]
[1735731995087,0.008,93779.0,93778.0,0.3618]
[1735731996697,0.02146848,93785.0,93778.0,0.3618]
[1735731997185,0.02146848,93785.0,93778.0,0.3608]
[1735731997393,0.02146848,93785.0,93778.0,0.3618]
[1735731997394,0.008,93779.0,93778.0,0.3618]
[1735731997891,0.0302,93784.0,93778.0,0.3608]
[1735731998096,0.0302,93784.0,93778.0,0.3618]
[1735731999695,0.0642,93783.0,93778.0,0.3618]
[1735731999892,0.5,93780.0,93778.0,0.3618]
[1735732000196,0.007,93779.0,93778.0,0.001]
[1735732000783,0.5,93779.0,93778.0,0.001]
[1735732001598,0.507,93779.0,93778.0,0.001]
[1735732004197,0.007,93779.0,93778.0,0.001]
[1735732005084,0.0447846,93779.0,93778.0,0.001]
[1735732007299,0.007,93779.0,93778.0,0.001]
[1735732007497,0.007,93779.0,93778.0,0.054421]
[1735732008090,0.00707647,93779.0,93778.0,1.554421]
[1735732008497,0.00707647,93779.0,93778.0,1.501]
[1735732008699,0.00707647,93779.0,93778.0,0.001]
[1735732009293,0.00607647,93779.0,93778.0,0.001]
[1735732009799,7.647e-05,93779.0,93776.0,0.3608]
[1735732010095,0.00607647,93779.0,93778.0,0.001]
[1735732010301,0.5,93787.0,93778.0,0.001]
[1735732010302,0.3280154,93787.0,93778.0,0.001]
[1735732010594,0.3280154,93787.0,93785.0,0.3608]
[1735732010796,0.03704248,93789.0,93785.0,0.3608]
[1735732010797,0.5,93786.0,93785.0,0.3608]
[1735732013501,0.53167841,93786.0,93785.0,0.3608]
[1735732013688,0.53167841,93786.0,93785.0,0.3618]
[1735732016903,0.53167841,93786.0,93785.0,0.001]
[1735732017103,0.5,93780.0,93756.0,0.3608]
[1735732017304,0.15232669,93786.0,93756.0,0.3608]
[1735732017305,0.10981652,93766.0,93756.0,0.3608]
[1735732017888,0.60981652,93766.0,93756.0,0.3608]
[1735732018101,0.12036209,93765.0,93756.0,0.3608]
[1735732018399,0.12036209,93765.0,93756.0,0.3638]
[1735732018599,0.12036209,93765.0,93744.0,0.3608]
[1735732018600,0.5,93755.0,93744.0,0.3608]
[1735732018803,0.0303,93754.0,93744.0,0.3608]
[1735732019011,0.14011652,93754.0,93744.0,0.3608]
[1735732020113,0.0303,93753.0,93744.0,0.3608]
[1735732020402,0.5,93750.0,93744.0,0.3608]
[1735732020594,0.5,93748.0,93744.0,0.3648]
[1735732020905,0.5,93750.0,93744.0,0.3648]
[1735732021411,0.0303,93753.0,93744.0,0.3648]
[1735732021605,0.5,93750.0,93744.0,0.3648]
[1735732021807,0.03,93749.0,93744.0,0.3648]
[1735732022103,0.53,93749.0,93744.0,0.3648]
[1735732022501,0.03,93749.0,93744.0,0.3648]
[1735732022711,0.53,93749.0,93744.0,0.3608]
[1735732022911,0.53,93749.0,93744.0,0.3648]
[1735732023111,0.03,93749.0,93744.0,0.004]
[1735732023407,0.12328124,93748.0,93744.0,0.005]
[1735732023603,0.5,93741.0,93739.0,0.00160013]
[1735732023802,0.3608,93743.0,93739.0,0.00160013]
[1735732024500,0.11107765,93742.0,93739.0,0.00160013]
[1735732024704,0.11107765,93742.0,93726.0,0.59815886]
[1735732024898,0.11107765,93742.0,93726.0,0.3608]
[1735732024899,0.10981652,93740.0,93726.0,0.3608]
[1735732025111,0.5,93732.0,93726.0,0.3608]
[1735732025410,0.5,93730.0,93726.0,0.3608]
[1735732025822,0.5,93729.0,93726.0,0.3608]